Workbook

Sheet List1
A3: Obec , IČ: Náklo, 00299251
A5: Rozpočtové opatření č. 11 - ZÁŘÍ 2022
A7: V souladu s ustanovením § 16 zákona č. 250/2000 Sb., o rozpočtových pravidlech územních rozpočtů dojde k rozpočtovému
A8: opatření v případě změn rozpočtových prostředků na závazných ukazatelích.
A10: Rozpočtové opatření č. 11/2022 (předloženo na Radě obce 19. 9. 2022) a doplněno při jednání na zasedání Rady obce
A12: PŘÍJMY
A13: PAR | B13: POL | C13: UZ | D13: PARAGRAF | E13: popis | F13: Rozpočet na rok 2022 | G13: Rozpočet po změnách | H13: změna ROZP | I13: ROZP po ZMĚNĚ | J13: POZNÁMKA
D14: Celkem ZMĚNY v PŘÍJMECH | F14: 33700619.7 | G14: 35858640.73 | I14: =H14+G14 -> 35858640.73
D16: Celkem PŘÍJMY | F16: =F14 -> 33700619.7 | G16: =G14 -> 35858640.73 | H16: =H14 -> 0 | I16: =G16+H16 -> 35858640.73
A18: VÝDAJE:
A19: PAR | B19: POL | C19: UZ | D19: PARAGRAF | E19: popis | F19: Rozpočet na rok 2022 | G19: Rozpočet po změnách | H19: změna ROZP | I19: ROZP po ZMĚNĚ | J19: POZNÁMKA
A20: 6171 | B20: 5011 | E20: Platy zaměstnanců | F20: 1800000 | G20: 1800000 | H20: 100000 | I20: =H20+G20 -> 1900000 | J20: mzdy zaměstnanců
A21: 6171 | B21: 5031 | E21: Povinné poj. Na soc. zab. | F21: 410000 | G21: 410000 | H21: 60000 | I21: =H21+G21 -> 470000 | J21: sociální pojištění
A22: 6171 | B22: 5032 | E22: Povinné pojištění na veřejné zdravotní pojištění | F22: 150000 | G22: 150000 | H22: 10000 | I22: =H22+G22 -> 160000 | J22: zdravotní pojištění
A23: 6171 | B23: 5137 | E23: Drobný dlouhodobý majetek | F23: 30000 | G23: 107062 | H23: 1809 | I23: =H23+G23 -> 108871 | J23: nákup telefonu
A24: 6171 | B24: 5151 | E24: Studená voda | F24: 6000 | G24: 7150 | H24: 1430 | I24: 8580 | J24: studená voda
A25: 6171 | B25: 5168 | E25: Zpracování dat | F25: 200000 | G25: 200000 | H25: -54640.69 | I25: 145359.31
A26: 6171 | D26: Činnost místní správy | F26: 5427999 | G26: 9236578.13 | H26: =+H21+H20+H22+H23+H24+H25 -> 118598.31 | I26: =H26+G26 -> 9355176.44
A27: 3612 | B27: 6121 | E27: Budovy, haly a stavby | F27: 0 | G27: 1542882.4 | H27: -299000 | I27: =H27+G27 -> 1243882.4
A28: 3612 | D28: Bytové hospodářství | F28: 210000 | G28: 1840882.4 | H28: =SUM(H27) -> -299000 | I28: 1541882.4
A29: 3632 | B29: 5154 | E29: Elektrická energie | F29: 6500 | G29: 11750 | H29: 4000 | I29: 15750 | J29: elektrická energie - hřbitov
A30: 3632 | D30: Pohřebnictví | F30: 153500 | G30: 157044 | H30: =H29 -> 4000 | I30: 161044
A31: 5512 | B31: 5154 | E31: Elektrická energie | F31: 60000 | G31: 60000 | H31: 10000 | I31: 70000 | J31: elektrická enegie - požární ochrana
A32: 5512 | D32: Požární ochrana | F32: 147000 | G32: 575907.34 | H32: =H31 -> 10000 | I32: 585907.34
A33: 2219 | B33: 5171 | E33: opravy a udržování | F33: 50000 | G33: 1229706.55 | H33: 65000 | I33: 1294706.55 | J33: oprava cyklostezka
A34: 2219 | B34: 6121 | E34: stavby | F34: 0 | G34: 4087.14 | H34: 151250 | I34: 155337.14 | J34: cyklostezka
A35: 2219 | D35: Ostatní záležitosti pozemních komunikací | F35: 247510 | G35: 1431303.69 | H35: =H34+H33 -> 216250 | I35: =H35+G35 -> 1647553.69
A36: 2321 | B36: 5137 | E36: Drobný dlouhodobý majetek | F36: 0 | G36: 0 | H36: 7932 | I36: =H36 -> 7932 | J36: příslušenství Fekál - ČOV Lhota
A37: 2321 | B37: 5139 | E37: Nákup materiálu jinde nezařazení | F37: 300000 | G37: 300000 | H37: -7932 | I37: =H37+G37 -> 292068
A38: 2321 | B38: 5171 | E38: opravy a udržování | F38: 400000 | G38: 400000 | H38: 100000 | I38: =H38+G38 -> 500000 | J38: nezáruční opravy čerpacích technologií - kanalizace
A39: 2321 | D39: Odvádění a čištění odpadních vod a nakládání s kaly | F39: 1162500 | G39: 1162500 | H39: =H38+H36+H37 -> 100000 | I39: =H39+G39 -> 1262500
A40: 3612 | B40: 5151 | E40: Studená voda | F40: 5000 | G40: 27000 | H40: 5477.55 | I40: =H40+G40 -> 32477.55 | J40: studená voda L39
A41: 3612 | D41: Bytové hospodářství | F41: 423000 | G41: 423000 | H41: =H40 -> 5477.55 | I41: =H41+G41 -> 428477.55
A42: 3631 | B42: 5169 | E42: Nákup ostatních služeb | F42: 10000 | G42: 6126.32 | H42: 77695.14 | I42: =H42+G42 -> 83821.46 | J42: pronáje ČEZ
A43: 3631 | D43: Veřejné osvětlení | F43: 30000 | G43: 370000 | H43: =H42 -> 77695.14 | I43: =H43+G43 -> 447695.14
A44: 3639 | B44: 5137 | E44: Drobný dlouhodobý majetek | F44: 0 | G44: 32634 | H44: 7962 | I44: =H44+G44 -> 40596 | J44: cyklomapy
A45: 3639 | B45: 6121 | E45: stavby | F45: 1950000 | G45: 1802068.95 | H45: -299000 | I45: =H45+G45 -> 1503068.95
A46: 3639 | D46: Komunální služby a územní rozvoj | F46: 7667935.7 | G46: 7562086.95 | H46: =H44+H45 -> -291038 | I46: =H46+G46 -> 7271048.95
A47: 3725 | B47: 5169 | E47: Nákup ostatních služeb | F47: 300000 | G47: 300000 | H47: 80000 | I47: =H47+G47 -> 380000 | J47: tříděný odpad
A48: 3725 | D48: Využívání a zneškodňování komunálního odpadu | F48: 7667935.7 | G48: 7562086.95 | H48: =H47 -> 80000 | I48: =H48+G48 -> 7642086.95
A49: 3726 | B49: 5154 | E49: elektrická energie | F49: 4000 | G49: 4000 | H49: 140 | I49: =H49+G49 -> 4140 | J49: el. Energie kompostárna
A50: 3726 | B50: 5169 | E50: Nákup ostatních služeb | F50: 14000 | G50: 14000 | H50: -10000 | I50: =H50+G50 -> 4000 | J50: el. Energie kompostárna
A51: 3726 | D51: Využívání a zneškodňování komunálního odpadu | F51: 20000 | G51: 20000 | H51: =H49+H50 -> -9860 | I51: =H51+G51 -> 10140
A52: 3745 | B52: 5139 | E52: Nákup materiálu jinde nezařazený | F52: 70000 | G52: 250000 | H52: 6720 | I52: =H52+G52 -> 256720 | J52: nákup materiálu - veřejná zeleň
A53: 3745 | B53: 6121 | E53: stavby | F53: 70000 | G53: 150000 | H53: -20000 | I53: =H53+G53 -> 130000 | J53: nákup materiálu - veřejná zeleň
A54: 3745 | D54: Péče o vzhled obcí a veřejnou zeleň | F54: 480600 | G54: 660600 | H54: =H52+H53 -> -13280 | I54: =H54+G54 -> 647320
A55: 6320 | B55: 5163 | E55: služby peněžním ústavům | F55: 51000 | G55: 74872 | H55: 1157 | I55: =H55+G55 -> 76029 | J55: pojištění rizik
A56: 6320 | D56: Pojištění funkčně nespecifikované | F56: 51000 | G56: 74872 | H56: =H55 -> 1157 | I56: =H56+G56 -> 76029
D57: Celkem ZMĚNY ve VÝDAJÍCH | F57: 30616619.7 | G57: 41730236.51 | H57: =H26+H28+H30+H32+H35+H39+H41+H43+H46+H48+H51+H54+H56 -> 0 | I57: =H57+G57 -> 41730236.51
D59: Celkem VÝDAJE | F59: 41730236.51 | G59: 0 | H59: =F59 -> 41730236.51
D61: Celkem 5XXX | F61: 26880442.95 | G61: 519277 | H61: 27399719.95
D62: Celkem 6XXX | F62: 12687107.25 | G62: 1488726.17 | H62: 14175833.42
A65: FINANCOVÁNÍ
A66: PAR | B66: POL | C66: UZ | D66: PARAGRAF | E66: popis | F66: Rozpočet na rok 2022 | G66: Rozpočet po změnách | H66: změna ROZP | I66: ROZP po ZMĚNĚ | J66: POZNÁMKA
D69: Celkem ZMĚNY ve FINANCOVÁNÍ: | I69: =I67 -> 0
D72: REKAPITULACE:
D74: Celkem PŘÍJMY | F74: 38021327.04 | G74: 0 | H74: =F74 -> 38021327.04
D75: Celkem FINANCOVÁNÍ: | F75: 3708909.47 | G75: 0 | H75: =F75 -> 3708909.47
D76: Celkem PŘÍJMY+FINANCOVÁNÍ | F76: =F75+F74 -> 41730236.51 | G76: 0 | H76: 41730236.51
D78: Celkem VÝDAJE | F78: =F76 -> 41730236.51 | G78: 0 | H78: 41730236.51
A81: Důvodová zpráva k rozpočtovému opatření č. 11/2022
A83: Přesun prostředků v rámci nezajištěného výdaje je Čerpán z rezervy obce.
A85: Správce rozpočtu :
A87: Starosta obce :
A89: Rada obce schvaluje dne 19. 9. 2022 rozpočtové opatření č. 11/2022 v předloženém rozsahu.

Sheet List2
A1: TEXTY PRO FORMULÁŘ ÚPRAVA ROZPOČTU - na začátek kopírují se řádky 3-13
A2: poznámka: Texty, které budou přenášeny z tohoto formuláře, musí být zapsány pouze ve sloupci A
A5: Obec , IČ: Náklo, 00299251
A7: Rozpočtové změny roku 2019 -duben
A9: V souladu s ustanovením § 16 zákona č. 250/2000 Sb., o rozpočtových pravidlech územních rozpočtů dojde k rozpočtovému
A10: opatření v případě změn rozpočtových prostředků na závazných ukazatelích.
A12: Rozpočtové opatření č. 1/2019 (předloženo na ZQ 6. 6. 2018) a doplněno při jednání na ZO
A14: TEXTY PRO FORMULÁŘ ÚPRAVA ROZPOČTU - na začátek kopírují se řádky 16-32
A16: Důvodová zpráva k rozpočtovému opatření č. 1/2019
A18: Přesun prostředků v rámci nezajištěného výdaje je Čerpán z rezervy obce.
A20: Správce rozpočtu :
A22: Starosta obce :
A24: ZO schvaluje dne 6. 6. 2018 rozpočtové opatření č. 3/2018 v předloženém rozsahu Usnesením č. 1038/1860

Sheet List3
